Cogmind - Beta 11.1 @@@ ROGUE MODE // 2022.08.29 @ 22:29:54 Player: eldritch Result: Self-destructed Performance ------------- Evolutions (1) 500 Regions Visited (3) 600 Robots Destroyed (13) 65 Value Destroyed (205) 205 Prototype IDs (0) 0 Alien Tech Used (0) 0 Bonus (0) 0 TOTAL SCORE: 1370 Bonus ------- None Cogmind --------- Core Integrity 370/400 Matter 176/300 Energy 250/250 System Corruption 0% Temperature Cool (0) Movement Rolling (110) Ox2 Location -9/Materials Parts ------- > --- POWER (1) -------- Ion Engine > --- PROPULSION (3) --- Light Treads Wheel > --- UTILITY (3) ------ Medium Storage Unit Signal Interpreter Hardened Medium Armor Plating > --- WEAPON (2) ------- EM Pulse Gun Rocket Launcher > --- INVENTORY (10) --- Nuclear Core Light Treads Advanced Targeting Computer EM Pulse Gun Medium Laser Makeshift Shrapnel Gun Mining Claw Heavy Explosive Trap Heavy Explosive Trap Heavy Explosive Trap Peak State ------------ > --- POWER ------------ Ion Engine > --- PROPULSION ------- Light Treads Wheel Wheel > --- UTILITY ---------- Medium Storage Unit Signal Interpreter Hardened Medium Armor Plating > --- WEAPON ----------- EM Pulse Gun Rocket Launcher > --- INVENTORY -------- Nuclear Core Light Treads Advanced Targeting Computer EM Pulse Gun Medium Laser Makeshift Shrapnel Gun Mining Claw Heavy Explosive Trap Heavy Explosive Trap Heavy Explosive Trap [Rating: 13] Favorites ----------- Power Ion Engine Engine Ion Engine Propulsion Wheel Treads Light Treads Wheel Wheel Utility Medium Storage Unit Storage Medium Storage Unit Processor Signal Interpreter Protection Hardened Medium Armor Plating Weapon EM Pulse Gun Energy Gun EM Pulse Gun Launcher Grenade Launcher Build | -11 -10 -10 -9 ------- Run | Scr Mat Min Mat Slots Evolved 2 | . . . 2 Power . | . . . . Propulsion 1 | . . . 1 Utility 1 | . . . 1 Weapon . | . . . . Parts Attached 15 | 6 5 1 3 Power 1 | 1 . . . Engine 1 | 1 . . . Core . | . . . . Reactor . | . . . . Propulsion 3 | 2 . . 1 Treads 1 | . . . 1 Leg . | . . . . Wheel 2 | 2 . . . Hover . | . . . . Flight . | . . . . Utility 4 | 1 2 . 1 Device . | . . . . Storage 2 | 1 1 . . Processor 1 | . 1 . . Hackware . | . . . . Protection 1 | . . . 1 Artifact . | . . . . Weapon 7 | 2 3 1 1 Energy Gun 5 | 2 2 1 . Energy Cannon . | . . . . Ballistic Gun . | . . . . Ballistic Cannon . | . . . . Launcher 2 | . 1 . 1 Special Weapon . | . . . . Impact Weapon . | . . . . Slashing Weapon . | . . . . Piercing Weapon . | . . . . Special Melee Weapon . | . . . . Unidentified Prototypes . | . . . . Parts Lost 1 | . . . 1 Power . | . . . . Propulsion 1 | . . . 1 Utility . | . . . . Weapon . | . . . . Highest Loss Streak 1 | . . . 1 To Critical Strikes . | . . . . Average Slot Usage (%) 96 | . 86 100 97 Engine 13 | . 14 14 11 Treads 1 | . . . 9 Wheel 26 | . 28 28 20 Storage 13 | . 14 14 11 Processor 10 | . 1 14 11 Protection 1 | . . . 11 Energy Gun 25 | . 24 28 19 Launcher 1 | . 3 . 2 Naked Turns . | . . . . Heaviest Build 29 | 13 20 19 29 Greatest Support 20 | 20 20 20 20 Greatest Overweight (x) 2 | . . . 2 Average Overweight (x) . | . . . . Largest Inventory Capacity 10 | 8 10 10 10 Average Capacity 9 | 6 8 10 10 Most Carried 10 | 4 7 10 10 Average Carried 8 | 1 6 9 9 Final Capacity 10 | 8 10 10 10 Final Carried 10 | 4 7 10 10 Class Distribution -------------------- 100% | Mutant Dominant Class ---------------- Mutant | -10/Materials Mutant | -10/Mines Mutant | -9/Materials Resources | -11 -10 -10 -9 ----------- Run | Scr Mat Min Mat Matter Collected 317 | 173 . 82 62 Remotely . | . . . . Salvage Created 179 | . . 10 169 Parts 20 | . . 5 15 Haulers Intercepted . | . . . . Recyclers Shooed . | . . . . Parts Field Recycled . | . . . . Retrieved Matter . | . . . . Parts Self-Destructed . | . . . . Prevented . | . . . . Kills | -11 -10 -10 -9 ------- Run | Scr Mat Min Mat Combat Hostiles Destroyed 11 | . . 3 8 Guns 3 | . . 1 2 AOE 8 | . . 2 6 Classes Destroyed 4 | . . 1 3 Worker 1 | . . . 1 Operator 1 | . . . 1 Swarmer 9 | . . 3 6 Grunt 2 | . . . 2 Best Kill Streak 9 | . . 3 9 Combat Bots Only 8 | . . 3 8 Max Kills in Single Turn 3 | . . 2 3 Gunslinging . | . . . . Exploded 3 | . . 2 3 Melee . | . . . . Uniques/NPCs Destroyed . | . . . . Combat | -11 -10 -10 -9 -------- Run | Scr Mat Min Mat Damage Taken 285 | . . 45 240 Core 31 | . . 1 30 Absorbed by Shields . | . . . . Core Remaining (%) 99 | 100 . 99 . Volleys Fired 20 | . 3 4 13 Largest 2 | . 2 2 2 Hottest 80 | . 80 80 80 Shots Fired 31 | . 6 5 20 Gun 22 | . 6 2 14 Cannon . | . . . . Launcher 9 | . . 3 6 Special . | . . . . Kinetic . | . . . . Thermal . | . . . . Explosive 9 | . . 3 6 Electromagnetic 22 | . 6 2 14 Robot Hit Streak 5 | . . 2 5 Robot Miss Streak 6 | . 4 6 2 Penetration Max . | . . . . Secondary Targets . | . . . . Shots Hit Robots 13 | . . 2 11 Core Hits 13 | . . 3 10 Critical Kills . | . . . . Critical Parts Destroyed . | . . . . Critical Strikes . | . . . . Melee Attacks . | . . . . Impact . | . . . . Slashing . | . . . . Piercing . | . . . . Sneak Attacks . | . . . . Combat Hostiles . | . . . . Follow-up Attacks . | . . . . Damage Inflicted 884 | . . 252 632 Guns 124 | . . 10 114 Cannons . | . . . . Explosions 760 | . . 242 518 Melee . | . . . . Ramming . | . . . . Kinetic . | . . . . Thermal 70 | . . . 70 Explosive 690 | . . 242 448 Electromagnetic 124 | . . 10 114 Impact . | . . . . Slashing . | . . . . Piercing . | . . . . Highest Corruption . | . . . . Average Corruption . | . . . . Corruption Purged . | . . . . Corruption Blocked . | . . . . Overload Shots . | . . . . Overflow Damage 28 | . . 5 23 Projectiles . | . . . . Explosions 28 | . . 5 23 Melee . | . . . . Knockbacks . | . . . . Impact . | . . . . Kinetic . | . . . . Secondary . | . . . . Self-Inflicted Damage 88 | . . 27 61 Shots 4 | . . 2 2 Rammed . | . . . . Targets Rammed . | . . . . Kicked . | . . . . Crushed . | . . . . Highest Temperature 74 | . 74 18 66 Average Temperature 27 | . 43 12 23 Received Heat Transfer 33 | . . . 33 Siege Activations . | . . . . Robots Corrupted . | . . . . Combat Hostiles . | . . . . Parts Fried 1 | . . . 1 Impact Corruptions . | . . . . Robots Melted . | . . . . Combat Hostiles . | . . . . Parts Melted . | . . . . Heat Transferred 100 | . . . 100 Parts Sabotaged . | . . . . Parts Stolen . | . . . . Parts Stripped . | . . . . Power Chain Reactions 2 | . . . 2 Missiles Intercepted . | . . . . Alert | -11 -10 -10 -9 ------- Run | Scr Mat Min Mat Peak Influence 366 | . 45 147 366 Initial 57 | . . 17 57 Average 105 | . 21 146 112 Maximum Alert Level 1 | . . . 1 Low Security (%) 98 | 100 100 100 90 Level 1 1 | . . . 9 Level 2 . | . . . . Level 3 . | . . . . Level 4 . | . . . . Level 5 . | . . . . High Security . | . . . . Max Security . | . . . . Squads Dispatched 2 | . 1 . 1 Investigation . | . . . . Extermination . | . . . . Reinforcement 2 | . 1 . 1 Assault . | . . . . Garrison . | . . . . Intercept . | . . . . Searches Triggered . | . . . . Construction Impeded . | . . . . Haulers Reinforced . | . . . . Active Scanning Responses . | . . . . Cargo Convoy Interrupts . | . . . . Stealth | -11 -10 -10 -9 --------- Run | Scr Mat Min Mat Distress Signals 1 | . . . 1 Communications Jammed . | . . . . Distress Signals . | . . . . Times Spotted 12 | . 2 1 9 Peak Tracking Total 9 | . 1 1 9 Tactical Retreats . | . . . . Traps | -11 -10 -10 -9 ------- Run | Scr Mat Min Mat Traps Triggered . | . . . . Indirectly . | . . . . Trap Hack Attempts . | . . . . Triggered . | . . . . Disarmed . | . . . . Reprogrammed . | . . . . Reused . | . . . . Traps Extracted . | . . . . Installed 1 | . . 1 . Triggered . | . . . . Most Traps Carried 3 | . . 3 3 Machines | -11 -10 -10 -9 ---------- Run | Scr Mat Min Mat Machines Disabled 3 | . 1 . 2 Max in Single Turn 2 | . 1 . 2 Machines Sabotaged . | . . . . Garrisons Compromised . | . . . . Overloaded Fab Kills . | . . . . Hacking | -11 -10 -10 -9 --------- Run | Scr Mat Min Mat Machines Accessed . | . . . . Terminals . | . . . . Fabricators . | . . . . Repair Stations . | . . . . Recycling Units . | . . . . Scanalyzers . | . . . . Garrison Access . | . . . . Total Hacks . | . . . . Successful . | . . . . Failed . | . . . . Catastrophic . | . . . . Database Lockouts . | . . . . Manual . | . . . . Terminals . | . . . . Fabricators . | . . . . Repair Stations . | . . . . Recycling Units . | . . . . Scanalyzers . | . . . . Garrison Access . | . . . . Terminal Hacks . | . . . . Fabricator Hacks . | . . . . Repair Station Hacks . | . . . . Recycling Unit Hacks . | . . . . Scanalyzer . | . . . . Garrison Access Hacks . | . . . . Unauthorized Hacks . | . . . . Terminals . | . . . . Fabricators . | . . . . Repair Stations . | . . . . Recycling Units . | . . . . Scanalyzers . | . . . . Garrison Access . | . . . . Data Cores Recovered . | . . . . Used . | . . . . Hacking Detections . | . . . . Full Trace Events . | . . . . Feedback Events . | . . . . Feedback Blocked . | . . . . Robot Schematics Acquired . | . . . . Robots Built . | . . . . Authchips . | . . . . Time . | . . . . Total Robot Build Rating . | . . . . Part Schematics Acquired . | . . . . Parts Built . | . . . . Authchips . | . . . . Time . | . . . . Total Part Build Rating . | . . . . Parts Repaired . | . . . . Time . | . . . . Parts Recycled . | . . . . Recycled Matter . | . . . . Retrieved Matter . | . . . . Retrieved Components . | . . . . Parts Scanalyzed . | . . . . Part Schematics Acquired . | . . . . Parts Damaged . | . . . . Bothacking | -11 -10 -10 -9 ------------ Run | Scr Mat Min Mat Used RIF Installer . | . . . . Robots Hacked . | . . . . Non-combat . | . . . . Combat . | . . . . Robot Hacks Applied . | . . . . Relay Couplers Released . | . . . . Fabnet Peak Effective % . | . . . . Robots Rewired . | . . . . Allies Hacked . | . . . . Hacks Repelled . | . . . . Allies | -11 -10 -10 -9 -------- Run | Scr Mat Min Mat Total Allies . | . . . . Largest Group . | . . . . Highest-Rated Group . | . . . . Highest-Rated Ally . | . . . . Total Orders . | . . . . Ally Attacks . | . . . . Total Damage . | . . . . Kills . | . . . . Allies Corrupted . | . . . . Allies Melted . | . . . . Intel | -11 -10 -10 -9 ------- Run | Scr Mat Min Mat Robot Analysis Total . | . . . . Derelict Logs Recovered 1 | . . 1 . Drone Launches . | . . . . Drone Recoveries . | . . . . Exploration | -11 -10 -10 -9 ------------- Run | Scr Mat Min Mat Turns Passed 640 | 58 114 369 99 Spaces Moved 665 | 50 118 439 58 Core 2 | 2 . . . Treads . | . . . . Legs . | . . . . Wheels 663 | 48 118 439 58 Hover . | . . . . Flight . | . . . . Fastest Speed 50 | 50 80 80 80 Average Speed 81 | 78 80 80 94 Slowest Speed 110 | 80 80 80 110 Overloaded Moves . | . . . . Propulsion Burnouts . | . . . . Robots Hopped . | . . . . Cave-ins Triggered . | . . . . Exploration Rate (%) 30 | 3 29 74 14 Regions Visited 3 Branch Regions 1 Pre-discovered Areas 2 | . . 2 . Known Exits Taken 2 | . 1 1 . Unknown Exits Taken 1 | 1 . . . Scrap Searched 1 | . . 1 . Spaces Dug . | . . . . Terrain Destroyed 52 | . . 22 30 Melee . | . . . . Projectile . | . . . . AOE 52 | . . 22 30 Terrain Rammed . | . . . . Walls Destroyed . | . . . . Machines Disabled . | . . . . Actions | -11 -10 -10 -9 --------- Run | Scr Mat Min Mat Total 729 | 65 129 452 83 Wait 11 | 6 . 1 4 Move 662 | 49 117 438 58 Hop . | . . . . Pick Up 15 | 4 3 5 3 Fast Attach 9 | 6 2 . 1 Attach 1 | . . . 1 Detach . | . . . . Swap 5 | . 3 1 1 Drop 5 | . 1 2 2 Fire 20 | . 3 4 13 Melee . | . . . . Ram . | . . . . Kick . | . . . . Crush . | . . . . Escape Stasis . | . . . . Rewire . | . . . . Trap 1 | . . 1 . Miscellaneous . | . . . . Route ------- -11/Scrapyard -10/Materials -10/Mines -9/Materials History --------- Turn | Location | Event 44 | -11/Scrapyard | Discovered new exit (range 12) 59 | -11/Scrapyard | Entered Materials 129 | -10/Materials | Discovered new exit (range 12) 172 | -10/Materials | Identified exit to Mines 173 | -10/Materials | Entered Mines 190 | -10/Mines | Found a hidden stash of uninstalled traps 207 | -10/Mines | Learned location of Mines (-9) 225 | -10/Mines | Assembled infested the area 230 | -10/Mines | Assisted by a Guerilla fighting off Assembled 309 | -10/Mines | Build established: Mutant 383 | -10/Mines | A weapon hastily lodged in a ceiling crevice suddenly fell to the ground 504 | -10/Mines | Discovered new exit (range 6) 508 | -10/Mines | Identified exit to Materials 527 | -10/Mines | Learned location of Storage (-7) 542 | -10/Mines | Entered Materials 542 | -9/Materials | Evolved 2 slots: Propulsion x1, Utility x1 641 | -9/Materials | Self-destructed Last Messages --------------- 00580_ Acquired Rocket Launcher. 00608_ Door malfunctions. 00611_ Chain reaction triggered in Ion Engine. 00611_ G-34 Mercenary destroyed. 00624_ U-05 Engineer lays Concrete. 00625_ Acquired 45 matter. 00625_ U-05 Engineer lays Concrete. 00626_ K-01 Serf collects debris. 00627_ U-05 Engineer lays Concrete. 00629_ U-05 Engineer builds a Wall. 00630_ Wheel destroyed. 00631_ K-01 Serf collects debris. 00632_ S-10 Pest destroyed. 00632_ Destroyed Flight Unit. 00634_ U-05 Engineer lays Concrete. 00634_ S-10 Pest destroyed. 00636_ Matter Pump disabled. 00636_ Pressure Siphon disabled. 00636_ K-01 Serf destroyed. 00638_ S-10 Pest destroyed. Map ----- +----------------------------------------------------+ | ?????????????????????????????????????????????????? | | ?????????????????????????????????????????????????? | | ?????????????????????????????????????????????????? | | ?????????????????????????????????????????????????? | | ?????????????????????????????????????????????????? | | ?????????????????????????????????????????????????? | | ?????????????????????????????????????????????????? | | ######???????????????????????????????????????????? | | *!!!!#???????????????????????????????????????????? | | *! !##??????????????????????????????????????????? | | "##?????????????????????????????????????????? | | "T##################????????????????????????? | | #??????????? #??????????? | | ######????? #??????????? | | ^ """ ##??? #??????????? | | #############+####### "Y" +??? #??????????? | | ???????????# #?# #??? ???????????? | | ???????????# #?# #?? #??????????? | | ???????????# ]! ]#?# ## #??????????? | | ???????????# !! ###^ # #??????????? | | ???????????# +u ; #??????????? | | ???????????# ###r ; #??????????? | | ???????????########## """ %= #??????????? | | ??????????????????#"" =""" =#+#+###+#??????????? | | ??????????????????#"" " # +?????????? | | ??????????????????#"T @ #?????????? | | ??????????????????#"" # +?????????? | | ??????????????????#"" #???? ??????????? | | ??????????????????### " #?????? #?????????? | | ????????????????????# """ % ?????????????????? | | ????????????????????# """ = =%[???????????????? | | ???????????????????? """ a[% ?????????????? | | ??????????????????? ????????????? | | ?????????????????? ????????????? | | ?????????????????# # Y???????????? | | ????????????????? g########????????????? | | ???????????????? #???????????????????? | | ???????????????? [ ????????????????????? | | ????????????????? * !!! ????????????????????? | | ???????????????????? = !!! ????????????????????? | | ?????????????????????? ???! ????????????????????? | | ?????????????????????????????????????????????????? | | ?????????????????????????????????????????????????? | | ?????????????????????????????????????????????????? | | ?????????????????????????????????????????????????? | | ?????????????????????????????????????????????????? | | ?????????????????????????????????????????????????? | | ?????????????????????????????????????????????????? | | ?????????????????????????????????????????????????? | | ?????????????????????????????????????????????????? | +----------------------------------------------------+ Best States ------------- Heat Dissipation 28 Energy Generation 10 Energy Capacity 250 Matter Stores 226 Matter Capacity 300 Sight Range 16 Terrain Scan Density 10 Armor Coverage 225 Evasion (%) 44 Recoil Reduction 1 Item Schematics ----------------- None Robot Schematics ------------------ None Fabricated ------------ Nothing Alien Tech Used ----------------- None Achievements -------------- None Challenges ------------ None Game ------ Seed FissionTerrabombBlaster Manual? 0 Play Time 00:06:54 Cumulative 260.7 hours Start 2022.08.29 @ 22:24:27 End 2022.08.29 @ 22:29:54 Sessions 1 Manual Loads 0 Difficulty Rogue Special Mode None Game No. 595 Rogue 595 Adventurer 0 Explorer 0 Win Type - Total 5 Types 4/0/0/1/0/0/0/0/0 Lore% 61 Gallery% 63 Achievement% 57 Wizard Run 0 Options --------- ASCII 0 Keyboard 0 Movement Numpad Keybinds 0 Fullscreen 1 Font 16/SmallcapsGlow Map View 75x55 Tactical HUD 1 Map Filters NONE Filters NONE Steam 1 RUN: c793fd9f-ccda-4d6d-82c8-9149e3db962c